[Event "14th Karen Asrian Memorial 2024"]
[Site "Yerevan"]
[Date "2024.04.30"]
[Round "7.4"]
[White "Sukiasyan, Vahe A."]
[Black "Davtyan, Arsen"]
[Result "1/2-1/2"]
[ECO "C84"]
[WhiteElo "2258"]
[BlackElo "2421"]
[Annotator "TA"]
[PlyCount "93"]
[EventDate "2024.04.24"]
[EventType "swiss"]
[EventCountry "ARM"]
[SourceTitle "playchess.com"]
[Source "ChessBase"]
[SourceQuality "1"]
[TimeControl "40/5400+30:1800+30"]

{[%evp 15,93,11,14,20,18,0,22,0,2,0,30,20,28,14,35,23,19,22,19,24,24,10,11,4,4,4,4,0,0,0,0,0,0,0,0,0,0,0,0,0,0,0,0,0,0,0,0,-8,-11,-11,-8,-8,-8,-15,-12,-87,-80,-87,-88,-95,-34,-34,-34,-87,-14,-14,0,-68,0,-14,0,-12,0,-12,0,0,0,0,0,0]} 1. e4 {[%emt 0:01:54]} e5 {[%emt 0:00:15]} 2. Nf3 {[%emt 0:00:10]} Nc6 {[%emt 0:00:07]} 3. Bb5 {[%emt 0:00:18][%cal Bf1b5,Bb5a4,Ba4b3,Bb3a2][%mdl 32]} a6 {[%emt 0:00:06]} 4. Ba4 {[%emt 0:00:07]} Nf6 {[%emt 0:00:09]} 5. O-O {[%emt 0:00:11]} Be7 {[%emt 0:00:17]} 6. d3 {[%emt 0:00:12]} b5 {[%emt 0:00:36]} 7. Bb3 {[%emt 0:00:06]} d6 {[%emt 0:00:05]} 8. a4 {[%emt 0:00:05]} Bd7 {[%emt 0:00:19]} 9. h3 {[%emt 0:00:48]} O-O {[%emt 0:01:14]} 10. Be3 {[%emt 0:00:05]} h6 {[%emt 0:04:15]} 11. Nc3 {[%emt 0:02:52]} Na5 {[%emt 0:15:34]} 12. Ba2 {[%emt 0:00:06]} c5 {[%emt 0:00:04]} 13. axb5 {[%emt 0:23:21]} axb5 {[%emt 0:00:09]} 14. Nd5 {[%emt 0:00:04]} Be6 {[%emt 0:12:36]} 15. Nxf6+ {[%emt 0:11:27]} Bxf6 {[%emt 0:00:06]} 16. Bxe6 {[%emt 0:00:03]} fxe6 {[%emt 0:00:06]} 17. c3 {[%emt 0:00:02]} Qd7 {[%emt 0:17:27]} 18. b4 {[%emt 0:09:06]} cxb4 {[%emt 0:00:30]} 19. cxb4 {[%emt 0:00:04]} Nc6 {[%emt 0:00:04]} 20. Qb3 {[%emt 0:00:02]} Kh7 {[%emt 0:12:43]} 21. Rfd1 {[%emt 0:04:20]} Nd4 {[%emt 0:11:32]} 22. Bxd4 {[%emt 0:07:24]} exd4 {[%emt 0:00:17]} 23. Rxa8 {[%emt 0:01:18]} Rxa8 {[%emt 0:00:03]} 24. Re1 {[%emt 0:00:08]} Rc8 {[%emt 0:06:07]} 25. e5 {[%emt 0:38:47]} dxe5 {[%emt 0:04:22]} 26. Nxe5 {[%emt 0:00:00]} Bxe5 {[%emt 0:05:55]} 27. Rxe5 $11 {[%emt 0:00:00][%mdl 4096] Endgame. KQR-KQR} Rc1+ {[%emt 0:01:25]} 28. Kh2 {[%emt 0:00:00][%cal Ob3b2]} Qf7 {[%emt 0:00:05]} 29. Re4 {[%emt 0:00:00] Dodges Qf4+} Qxf2 {[%emt 0:00:33] [#] ( -> ...Rg1)} 30. Qxe6 {[%emt 0:00:00]} Rd1 {[%emt 0:03:27] Hoping for ...Qg1+.} 31. Rg4 {[%emt 0:00:00] Qg6+ would kill now.} Qg1+ {[%emt 0:00:14]} ({Stronger than} 31... Rxd3 32. Qg6+ Kh8 33. Qxg7#) 32. Kg3 {[%emt 0:00:00] White threatens Qg6+ and mate.} Qe3+ $1 {[%emt 0:00:49]} (32... Rxd3+ $2 {loses.} 33. Kh4 Qf2+ 34. Kh5 $18) 33. Qxe3 {[%emt 0:00:00]} dxe3 {[%emt 0:00:01] KR-KR} 34. Re4 {[%emt 0:00:00]} Rxd3 {[%emt 0:00:05]} 35. Re5 {[%emt 0:00:00]} (35. Kf3 $11) 35... Rd4 $17 {[%emt 0:01:24]} 36. Rxe3 {[%emt 0:00:00]} Rxb4 {[%emt 0:00:04]} 37. Re6 {[%emt 0:00:00]} Rc4 {[%emt 0:03:33]} (37... h5 $17) 38. Rb6 $15 {[%emt 0:00:00]} b4 {[%emt 0:00:12]} 39. Kf3 {[%emt 0:00:00] [#]} Rc3+ {[%emt 0:02:16]} (39... h5 $1 $17) 40. Kf4 $11 {[%emt 0:00:00]} Rc4+ {[%emt 0:00:00]} (40... Rb3 $11) 41. Kf3 $15 {[%emt 0:00:00]} Rc3+ {[%emt 0:08:28]} (41... h5 $1 $15) 42. Kf4 $11 {[%emt 0:00:00] The position is equal.} b3 {[%emt 0:00:12]} 43. h4 {[%emt 0:00:00]} Kg8 {[%emt 0:11:15]} 44. Rb7 {[%emt 0:00:00]} Kf8 {[%emt 0:00:18]} 45. g4 {[%emt 0:00:00]} Ke8 {[%emt 0:00:08]} 46. Kf5 {[%emt 0:00:00]} Rf3+ {[%emt 0:05:50]} 47. Ke4 {[%emt 0:41:00] Weighted Error Value: White=0.08 (flawless) /Black=0.13 (very precise) .  Mistake:       	White=1     	Black=4      Inaccurate:     	---       	Black=1      OK:         	White=13    	Black=13     Best:        	White=3     	Black=2      Strong:       	---       	Black=1} 1/2-1/2

[Event "14th Karen Asrian Memorial 2024"]
[Site "Yerevan"]
[Date "2024.04.30"]
[Round "7.5"]
[White "Pogosyan, Stefan"]
[Black "Nalbandyan, Vahan"]
[Result "1-0"]
[ECO "D56"]
[WhiteElo "2387"]
[BlackElo "2110"]
[Annotator "TA"]
[PlyCount "65"]
[EventDate "2024.04.24"]
[EventType "swiss"]
[EventCountry "ARM"]
[SourceTitle "playchess.com"]
[Source "ChessBase"]
[SourceQuality "1"]
[TimeControl "40/5400+30:1800+30"]

{[%evp 18,65,11,18,17,17,18,26,44,43,37,41,38,56,77,50,53,0,0,0,38,26,43,37,33,27,50,39,196,198,189,212,198,197,300,299,292,305,302,306,306,264,327,331,391,358,408,378,472,451]} 1. d4 {[%emt 1:31:00]} d5 {[%emt 0:03:26]} 2. c4 {[%emt 0:00:00]} e6 {[%emt 0:00:42]} 3. Nc3 {[%emt 0:00:00]} Nf6 {[%emt 0:00:28]} 4. Bg5 {[%emt 0:00:00]} Be7 {[%emt 0:00:36]} 5. e3 {[%emt 0:00:00]} h6 {[%emt 0:02:17]} 6. Bh4 {[%emt 0:00:00]} O-O {[%emt 0:00:18]} 7. Nf3 {[%emt 0:00:00]} Ne4 {[%emt 0:00:14]} 8. Bxe7 {[%emt 0:00:00]} Qxe7 {[%emt 0:00:00]} 9. Rc1 {[%emt 0:00:00]} Nxc3 {[%emt 0:27:06]} 10. Rxc3 {[%emt 0:00:00]} dxc4 {[%emt 0:02:33]} 11. Bxc4 {[%emt 0:00:00]} Nd7 {[%emt 0:02:37]} 12. O-O {[%emt 0:00:00]} e5 {[%emt 0:07:31] White has an edge.} 13. d5 {[%emt 0:00:00]} Nb6 {[%emt 0:04:52]} 14. Bb3 {[%emt 0:00:00]} Bf5 {[%emt 0:16:47] Dodges Qc2} 15. Nd2 {[%emt 0:00:00][%cal Bf3d2,Bd2e4,Be4c5][%mdl 32] Dodges Be4} e4 {[%emt 0:01:02] Prevents Qf3} 16. Qh5 {[%emt 0:00:00]} Qd7 {[%emt 0:06:39] [#]} 17. Rxc7 {[%emt 0:00:00]} Qxc7 $11 {[%emt 0:00:33]} 18. Qxf5 {[%emt 0:00:00]} Rae8 {[%emt 0:02:31]} 19. Nxe4 {[%emt 0:00:00]} Qe5 {[%emt 0:06:00] Prevents Nf6+} 20. Qxe5 {[%emt 0:00:00]} Rxe5 {[%emt 0:00:05]} 21. Nc5 {[%emt 0:00:00]} Rb8 {[%emt 0:04:29][%cal Oe5e8]} 22. e4 {[%emt 0:00:00]} g5 $2 {[%emt 0:00:34] [#] This move loses the game for Black.} (22... Ree8 $14) 23. f4 $1 $18 {[%emt 0:00:00]} gxf4 {[%emt 0:01:19]} 24. Rxf4 {[%emt 0:00:00]} Kg7 {[%emt 0:04:34]} 25. Nd3 {[%emt 0:00:00]} Nd7 {[%emt 0:03:12]} (25... Rg5 {keeps fighting.} 26. e5 Nd7) 26. Nxe5 {[%emt 0:00:00]} Nxe5 {[%emt 0:00:02][%mdl 4096] Endgame. KRB-KRN} 27. Rf5 {[%emt 0:00:00]} f6 {[%emt 0:01:35]} 28. Rf2 {[%emt 0:00:00]} Re8 {[%emt 0:01:50]} 29. d6 {[%emt 0:00:00]} b5 {[%emt 0:00:32]} 30. Rd2 {[%emt 0:00:00]} Nd7 {[%emt 0:00:26]} 31. Bd5 {[%emt 0:00:00]} Rd8 {[%emt 0:00:33]} 32. Bc6 {[%emt 0:00:00]} Nc5 {[%emt 0:00:26]} 33. b4 {[%emt 0:00:00] Weighted Error Value: White=0.08 (flawless) /Black=0.37.  Mistake:       	White=1     	Black=2      Inaccurate:     	White=1     	Black=1      OK:         	White=12    	Black=6      Best:        	White=1     	---        Strong:       	White=1     	---} (33. Bxb5 Nxe4 34. Rd4 Nxd6 $16) 1-0

[Event "14th Karen Asrian Memorial 2024"]
[Site "Yerevan"]
[Date "2024.04.30"]
[Round "7.6"]
[White "Chaqryan, Erik"]
[Black "Andriasian, Zaven"]
[Result "0-1"]
[ECO "E70"]
[WhiteElo "2326"]
[BlackElo "2570"]
[Annotator "RC"]
[PlyCount "172"]
[EventDate "2024.04.24"]
[EventType "swiss"]
[EventCountry "ARM"]
[SourceTitle "playchess.com"]
[Source "ChessBase"]
[SourceQuality "1"]
[TimeControl "40/5400+30:1800+30"]

1. d4 {[%emt 0:00:15]} Nf6 {[%emt 0:00:11]} 2. c4 {[%emt 0:00:08]} g6 {[%emt 0:00:23]} 3. Nc3 {[%emt 0:00:10]} Bg7 {[%emt 0:00:21]} 4. e4 {[%emt 0:00:15]} d6 {[%emt 0:00:07]} 5. Nge2 {[%emt 0:00:05]} O-O {[%emt 0:01:17]} 6. Ng3 {[%emt 0:00:08]} h5 {[%emt 0:00:46]} 7. Be2 {[%emt 0:00:10]} a5 {[%emt 0:01:29]} 8. Be3 {[%emt 0:08:51]} e5 {[%emt 0:01:23]} 9. d5 {[%emt 0:03:17]} Na6 {[%emt 0:00:10]} 10. h3 {[%emt 0:23:33]} Nc5 {[%emt 0:01:34]} 11. Qc2 {[%emt 0:04:58]} h4 {[%emt 0:07:07]} 12. Nf1 {[%emt 0:01:11]} Nh7 {[%emt 0:00:11]} 13. O-O-O {[%emt 0:08:15]} f5 {[%emt 0:02:08]} 14. Rg1 {[%emt 0:02:41]} Bd7 {[%emt 0:04:50]} 15. g3 {[%emt 0:05:17]} hxg3 {[%emt 0:01:44]} 16. Bxc5 {[%emt 0:02:23]} dxc5 {[%emt 0:00:27]} 17. Nxg3 {[%emt 0:00:08]} f4 {[%emt 0:05:55]} 18. Nf1 {[%emt 0:00:23]} f3 {[%emt 0:00:08]} 19. Bd3 {[%emt 0:00:04]} Ra6 {[%emt 0:00:31]} 20. Nd2 {[%emt 0:11:14]} Bh6 {[%emt 0:09:34]} 21. Kb1 {[%emt 0:02:16]} Raf6 {[%emt 0:08:01]} 22. h4 {[%emt 0:02:33]} Kh8 {[%emt 0:02:08]} 23. Nb5 {[%emt 0:09:34]} b6 {[%emt 0:02:41]} 24. Qc3 {[%emt 0:06:55]} Bxb5 {[%emt 0:00:46]} 25. cxb5 {[%emt 0:00:05]} Bxd2 {[%emt 0:00:20]} 26. Qxd2 {[%emt 0:00:05]} Qd6 {[%emt 0:01:38]} 27. Rg3 {[%emt 0:00:06]} Rf4 {[%emt 0:05:02]} 28. Rdg1 {[%emt 0:00:06]} R8f6 {[%emt 0:00:34]} 29. Rh1 {[%emt 0:00:28]} Kg7 {[%emt 0:05:25]} 30. Qc1 {[%emt 0:00:11]} Qe7 {[%emt 0:08:23]} 31. Qg1 {[%emt 0:01:57]} Rd6 {[%emt 0:05:38]} 32. Rhh3 {[%emt 0:03:42]} Rxh4 {[%emt 0:02:14]} 33. Qh2 {[%emt 0:01:19]} Rxh3 {[%emt 0:01:00]} 34. Rxh3 {[%emt 0:00:04]} Ng5 {[%emt 0:05:14]} 35. Rh8 {[%emt 0:00:25]} Kf6 {[%emt 0:00:21]} 36. Qg3 {[%emt 0:04:31]} Rd8 {[%emt 0:08:11]} 37. Rh4 {[%emt 0:00:03]} Qg7 {[%emt 0:06:29]} 38. Rg4 {[%emt 0:00:06]} Nf7 {[%emt 0:00:07]} 39. Qxf3+ {[%emt 0:00:47]} Ke7 {[%emt 0:00:01]} 40. Qg2 {[%emt 0:00:00]} Rd6 {[%emt 0:00:00]} 41. Rh4 {[%emt 0:08:32]} g5 {[%emt 0:05:24]} 42. Rh3 {[%emt 0:08:21]} Rh6 {[%emt 0:02:31]} 43. Be2 {[%emt 0:02:05]} Qh7 {[%emt 0:04:38]} 44. Rxh6 {[%emt 0:03:41]} Qxh6 {[%emt 0:00:43]} 45. Qg4 {[%emt 0:00:55]} Nd6 {[%emt 0:00:47]} 46. f3 {[%emt 0:03:48]} Kd8 {[%emt 0:04:24]} 47. Kc2 {[%emt 0:00:27]} a4 {[%emt 0:02:24]} 48. Qg3 {[%emt 0:01:09]} Qf6 {[%emt 0:01:44]} 49. Qh3 {[%emt 0:00:17]} c4 {[%emt 0:02:51]} 50. Kc3 {[%emt 0:03:21]} Nxb5+ {[%emt 0:01:21]} 51. Kxc4 {[%emt 0:00:04]} Nd4 {[%emt 0:00:15]} 52. Kd3 {[%emt 0:00:41]} c6 {[%emt 0:01:26]} 53. dxc6 {[%emt 0:00:42]} Nxc6 {[%emt 0:00:19]} 54. Ke3 {[%emt 0:00:52]} Nd4 {[%emt 0:01:44]} 55. Qh7 {[%emt 0:00:52]} b5 {[%emt 0:03:49]} 56. Qb7 {[%emt 0:00:54]} Qf4+ {[%emt 0:04:26]} 57. Kd3 {[%emt 0:00:04]} Qc1 {[%emt 0:02:01]} 58. Qb8+ {[%emt 0:03:21]} Kd7 {[%emt 0:00:08]} 59. Qb7+ {[%emt 0:00:43]} Qc7 {[%emt 0:01:44]} 60. Qd5+ {[%emt 0:00:05]} Ke7 {[%emt 0:00:39]} 61. Bd1 {[%emt 0:00:08]} Kf6 {[%emt 0:01:11]} 62. Qg8 {[%emt 0:00:22]} Ne6 {[%emt 0:01:02]} 63. Qh8+ {[%emt 0:00:07]} Kf7 {[%emt 0:00:26]} 64. Qh7+ {[%emt 0:01:05]} Ng7 {[%emt 0:00:02]} 65. b3 {[%emt 0:00:47]} Qc1 {[%emt 0:00:48]} 66. Bc2 {[%emt 0:00:51]} Qf1+ {[%emt 0:00:06]} 67. Kd2 {[%emt 0:00:17]} Qf2+ {[%emt 0:00:34]} 68. Kd1 {[%emt 0:00:34]} Qxf3+ {[%emt 0:00:15]} 69. Kd2 {[%emt 0:00:02]} Qf2+ {[%emt 0:00:43]} 70. Kd1 {[%emt 0:00:06]} Qd4+ {[%emt 0:00:16]} 71. Ke2 {[%emt 0:00:22]} Qb2 {[%emt 0:00:29]} 72. Kd1 {[%emt 0:01:43]} a3 {[%emt 0:01:50]} 73. b4 {[%emt 0:00:22]} Qxb4 {[%emt 0:00:49]} 74. Qh3 {[%emt 0:00:36]} Qd4+ {[%emt 0:00:17]} 75. Ke2 {[%emt 0:00:28]} Qc4+ {[%emt 0:00:40]} 76. Kd1 {[%emt 0:00:05]} Qd4+ {[%emt 0:00:16]} 77. Ke2 {[%emt 0:00:05]} b4 {[%emt 0:00:21]} 78. Bb3+ {[%emt 0:00:41]} Kg6 {[%emt 0:00:01]} 79. Qf3 {[%emt 0:00:07]} Qd7 {[%emt 0:00:23]} 80. Qf8 {[%emt 0:00:19]} g4 {[%emt 0:00:14]} 81. Qxb4 {[%emt 0:00:16]} Nh5 {[%emt 0:00:22]} 82. Qb8 {[%emt 0:00:59]} Nf4+ {[%emt 0:00:57]} 83. Ke1 {[%emt 0:00:03]} Qe7 {[%emt 0:00:39]} 84. Kf1 {[%emt 0:00:52]} Kg5 {[%emt 0:00:28]} 85. Qh8 {[%emt 0:01:27]} Ng6 {[%emt 0:00:20]} 86. Qh2 {[%emt 0:00:35]} Qf6+ {[%emt 0:00:11]} 0-1

[Event "14th Karen Asrian Memorial 2024"]
[Site "Yerevan"]
[Date "2024.04.30"]
[Round "7.7"]
[White "Shahinyan, David"]
[Black "Atoyan, Alberto"]
[Result "1-0"]
[ECO "C42"]
[WhiteElo "2441"]
[BlackElo "2243"]
[Annotator "TA"]
[PlyCount "63"]
[EventDate "2024.04.24"]
[EventType "swiss"]
[EventCountry "ARM"]
[SourceTitle "playchess.com"]
[Source "ChessBase"]
[SourceQuality "1"]
[TimeControl "40/5400+30:1800+30"]

{[%evp 17,63,0,19,16,43,49,90,97,102,99,160,166,169,173,164,145,143,143,143,143,143,144,144,137,131,126,127,129,130,127,126,126,127,125,235,132,491,486,608,608,605,601,594,569,795,774,715,610]} 1. e4 {[%emt 0:00:45]} e5 {[%emt 0:00:11]} 2. Nf3 {[%emt 0:00:31]} Nf6 {[%emt 0:00:13]} 3. Nxe5 {[%emt 0:02:02]} d6 {[%emt 0:00:13]} 4. Nf3 {[%emt 0:00:43]} Nxe4 {[%emt 0:00:14]} 5. Nc3 {[%emt 0:00:33]} Nxc3 {[%emt 0:00:11]} 6. dxc3 {[%emt 0:00:03]} Be7 {[%emt 0:00:10]} 7. Bf4 {[%emt 0:00:03]} O-O {[%emt 0:00:32]} 8. Qd2 {[%emt 0:00:02]} Nd7 {[%emt 0:04:00]} 9. O-O-O {[%emt 0:00:49]} Nf6 {[%emt 0:00:58]} 10. Bd3 {[%emt 0:05:12]} Be6 {[%emt 0:04:41][%cal Oc7c5]} 11. Kb1 {[%emt 0:04:52]} c5 {[%emt 0:16:39]} 12. Ng5 {[%emt 0:03:15] White is better.} Qd7 {[%emt 0:07:24]} 13. Rhe1 {[%emt 0:04:46]} h6 {[%emt 0:23:02]} ({Black should play} 13... d5) 14. Nxe6 $16 {[%emt 0:03:51]} fxe6 {[%emt 0:00:05]} 15. Qe2 {[%emt 0:03:55]} Nd5 {[%emt 0:01:02][%cal Bf6d5,Bd5f4,Bf4e2][%mdl 32]} 16. Bb5 {[%emt 0:18:18][%cal Bd3b5,Bb5d7,Bd7e6,Be6d5][%mdl 32]} (16. Qxe6+ Qxe6 17. Rxe6 Nxf4 $14 (17... Rxf4 18. c4 $16)) 16... Nxf4 {[%emt 0:03:57]} 17. Bxd7 {[%emt 0:02:02]} Nxe2 {[%emt 0:00:03]} 18. Bxe6+ {[%emt 0:00:02]} Kh8 {[%emt 0:00:04]} 19. Rxe2 {[%emt 0:00:03]} Rad8 {[%emt 0:03:16] Black is weak on the light squares} 20. Bd5 {[%emt 0:04:55]} Bf6 {[%emt 0:02:09]} 21. Rde1 {[%emt 0:00:03] White is more active.} Be5 {[%emt 0:03:17]} 22. g3 {[%emt 0:00:25]} g5 {[%emt 0:03:38]} 23. c4 {[%emt 0:00:01]} (23. Bxb7 Rb8 24. f4 Bf6 25. fxg5 hxg5 $19) 23... Rf6 {[%emt 0:07:07]} 24. f3 {[%emt 0:00:44]} (24. Bxb7 $6 Rb8 25. Bd5 (25. f4 gxf4 26. gxf4 Rxf4 $17) 25... Rxb2+ 26. Kc1 Rxa2 $11) 24... h5 {[%emt 0:04:01]} 25. c3 {[%emt 0:00:39]} ({Don't do} 25. Bxb7 $6 Rb8 26. Rxe5 (26. f4 $2 gxf4 27. Bd5 f3 $19) 26... dxe5 $14) 25... Rd7 {[%emt 0:01:07] [#]} (25... b6 $16 26. Rg2 Rg6) 26. Kc2 {[%emt 0:03:26]} ({White must play} 26. h4 $1 $18 {[%cal Rh4g5]} Bxg3 27. Re8+ (27. hxg5 Rf8 $18) 27... Kh7 28. hxg5) 26... Rg7 {[%emt 0:00:40][%mdl 8192]} (26... Rf8 $16 27. Kb3 b6) 27. h4 $18 {[%emt 0:04:55] White is clearly winning.} Rfg6 {[%emt 0:05:46] [#]} 28. f4 $1 {[%emt 0:04:36][%mdl 512]} gxf4 {[%emt 0:00:45]} 29. gxf4 {[%emt 0:00:02]} Bxf4 {[%emt 0:00:07]} 30. Re8+ {[%emt 0:00:04]} Kh7 {[%emt 0:00:04]} 31. Be4 {[%emt 0:00:07][%cal Oe1g1] Rg1! would now be deadly.} Be5 {[%emt 0:00:04]} 32. Rg1 {[%emt 0:00:20] White took control after the opening.   Weighted Error Value: White=0.08 (flawless) /Black=0.55.  Loses game:     	---       	Black=1      Mistake:       	White=1     	Black=2      Inaccurate:     	---       	Black=2      OK:         	White=10    	Black=9      Best:        	White=3     	Black=1} ({Weaker is} 32. Bxg6+ Rxg6 33. a4 b6 $18) 1-0

[Event "14th Karen Asrian Memorial 2024"]
[Site "Yerevan"]
[Date "2024.04.30"]
[Round "7.8"]
[White "Hayrapetyan, Edgar"]
[Black "Korshunov, Sergey And."]
[Result "0-1"]
[ECO "D59"]
[WhiteElo "2340"]
[BlackElo "2286"]
[Annotator "TA"]
[PlyCount "152"]
[EventDate "2024.04.24"]
[EventType "swiss"]
[EventCountry "ARM"]
[SourceTitle "playchess.com"]
[Source "ChessBase"]
[SourceQuality "1"]
[TimeControl "40/5400+30:1800+30"]

{[%evp 35,152,-25,-26,-30,-19,-58,-58,-59,-68,-69,-64,-80,-80,-122,-114,-129,-113,-171,-183,-186,-191,-185,-20,-210,-213,-234,-239,-234,-239,-231,-236,-257,0,-276,-218,-219,-211,-315,-210,-319,-318,-308,-272,-242,0,-296,-303,-303,-211,-211,-211,-211,0,-211,-211,-211,-211,-211,-211,-211,-211,-212,-211,-211,0,-212,-219,-212,-212,-205,-190,-212,-190,-212,-192,-212,-212,-212,-212,-212,-183,-212,-212,-212,-212,-212,-212,-212,-212,-212,-162,-432,-422,-388,-460,-502,-487,-477,-463,-617,-615,-925,-903,-792,-575,-644,-543,-807,-772,-710,-631,-2708,-1619,-3566,-2587,-4090,-2665,-5709,-3002]} 1. d4 {[%emt 0:03:04]} Nf6 {[%emt 0:00:07]} 2. c4 {[%emt 0:00:03]} e6 {[%emt 0:00:08]} 3. Nf3 {[%emt 0:00:05]} d5 {[%emt 0:00:31]} 4. Nc3 {[%emt 0:00:05]} Be7 {[%emt 0:00:07]} 5. Bg5 {[%emt 0:00:06]} O-O {[%emt 0:00:09]} 6. e3 {[%emt 0:00:02]} h6 {[%emt 0:00:11]} 7. Bh4 {[%emt 0:01:34]} b6 {[%emt 0:00:10]} 8. cxd5 {[%emt 0:04:29]} Nxd5 {[%emt 0:00:09]} 9. Bxe7 {[%emt 0:00:05]} Qxe7 {[%emt 0:00:06]} 10. Nxd5 {[%emt 0:00:03]} exd5 {[%emt 0:00:06]} 11. Rc1 {[%emt 0:00:01]} Be6 {[%emt 0:00:38]} 12. Bd3 {[%emt 0:05:15]} c5 {[%emt 0:01:35]} 13. O-O {[%emt 0:07:21]} c4 {[%emt 0:18:57]} 14. Bb1 {[%emt 0:06:24]} Nd7 {[%emt 0:09:35]} 15. Ne5 {[%emt 0:04:17]} Rfe8 {[%emt 0:08:59]} 16. Qc2 {[%emt 0:12:15]} Nf8 {[%emt 0:04:41]} 17. Rfe1 {[%emt 0:24:19]} b5 {[%emt 0:09:21]} 18. Qd2 {[%emt 0:06:12]} Qd6 {[%emt 0:12:37]} 19. h3 {[%emt 0:04:15]} a5 {[%emt 0:02:29]} 20. f3 {[%emt 0:00:42]} b4 {[%emt 0:01:38]} 21. e4 {[%emt 0:00:37]} Rac8 $1 {[%emt 0:04:19]} 22. Qf2 {[%emt 0:03:27]} Red8 {[%emt 0:02:14]} 23. Rcd1 {[%emt 0:00:37]} c3 {[%emt 0:04:52]} 24. b3 {[%emt 0:01:07]} Rc7 {[%emt 0:05:43]} 25. Bc2 {[%emt 0:00:10]} Re7 {[%emt 0:00:43]} 26. Ng4 {[%emt 0:02:00] [#]} (26. Re2 $17 {is a better defense.}) 26... dxe4 $1 $19 {[%emt 0:02:02]} 27. fxe4 {[%emt 0:00:01]} Bxg4 {[%emt 0:02:07]} 28. hxg4 {[%emt 0:00:01]} Qf6 $2 {[%emt 0:00:42]} ({Black should play} 28... Red7 $19 {Threatens to win with ...Qe7.} 29. Re3 Qg6) 29. e5 $2 {[%emt 0:01:08]} (29. Qxf6 $11 {and White has nothing to worry.} gxf6 30. Re3) 29... Qxf2+ $19 {[%emt 0:00:41]} 30. Kxf2 {[%emt 0:00:01] [#]} Red7 $1 {[%emt 0:00:01]} 31. Re4 {[%emt 0:02:45]} Ne6 {[%emt 0:00:05]} 32. Ke3 {[%emt 0:00:01]} Ng5 {[%emt 0:01:29]} 33. Rf4 {[%emt 0:00:02]} Ne6 {[%emt 0:00:01]} 34. Re4 {[%emt 0:00:08]} Kf8 {[%emt 0:01:00]} 35. Rd3 {[%emt 0:03:45]} Ke7 {[%emt 0:00:28]} 36. Rd1 {[%emt 0:00:01]} (36. Bb1 $142) 36... Rd5 {[%emt 0:00:07]} 37. g3 {[%emt 0:00:28]} (37. Rd3 $142) 37... R8d7 $19 {[%emt 0:00:07]} 38. Rd3 {[%emt 0:01:06]} Ng5 {[%emt 0:01:14]} 39. Rf4 {[%emt 0:00:00]} Ne6 {[%emt 0:00:00]} 40. Re4 {[%emt 0:00:00]} Kd8 {[%emt 0:00:00]} 41. Rd1 {[%emt 0:03:24]} g5 {[%emt 0:01:56]} 42. Rd3 {[%emt 0:01:09]} Kc7 {[%emt 0:00:23]} 43. Bb1 {[%emt 0:01:33]} Kd8 {[%emt 0:04:57]} 44. Bc2 {[%emt 0:02:11]} Ke8 {[%emt 0:01:21]} 45. Bb1 {[%emt 0:01:10]} Ke7 {[%emt 0:00:14]} 46. Bc2 {[%emt 0:00:15]} Nc7 {[%emt 0:00:04]} 47. Rd1 {[%emt 0:00:35]} Nb5 {[%emt 0:00:06]} 48. Bb1 {[%emt 0:01:03]} Rd8 {[%emt 0:00:23]} 49. Bc2 {[%emt 0:00:25]} R8d7 {[%emt 0:14:54]} 50. Bb1 $1 {[%emt 0:02:49]} Kd8 {[%emt 0:00:05]} 51. Bc2 {[%emt 0:01:04]} Kc7 {[%emt 0:00:04]} 52. Bb1 {[%emt 0:00:41]} Kb6 {[%emt 0:00:05]} 53. Bc2 {[%emt 0:11:47]} Rd8 {[%emt 0:00:17]} 54. Bb1 {[%emt 0:00:56]} R5d7 {[%emt 0:00:05]} 55. Bc2 {[%emt 0:00:40]} Ka7 {[%emt 0:00:11]} 56. Bb1 {[%emt 0:00:26]} Kb7 {[%emt 0:00:11]} 57. Bc2 {[%emt 0:00:15]} Kb6 {[%emt 0:00:03]} 58. Bb1 {[%emt 0:00:29]} Nc7 {[%emt 0:03:50]} 59. Bc2 {[%emt 0:00:59]} Ne6 {[%emt 0:00:15]} 60. Rd3 {[%emt 0:00:04]} Rd5 {[%emt 0:00:46]} 61. Bb1 {[%emt 0:00:35]} Rh8 {[%emt 0:02:59]} 62. Rd1 {[%emt 0:01:20]} h5 {[%emt 0:00:54]} 63. Bd3 $2 {[%emt 0:02:17]} (63. gxh5 Rxh5 64. Bd3) 63... h4 $19 {[%emt 0:00:57]} 64. Bc4 {[%emt 0:00:05]} Rdd8 {[%emt 0:01:04]} 65. d5 {[%emt 0:04:49]} Nc5 {[%emt 0:02:56]} 66. Red4 {[%emt 0:00:24]} h3 {[%emt 0:02:16]} ({Don't play} 66... hxg3 67. Be2) 67. Kf3 {[%emt 0:00:09]} Rde8 {[%emt 0:00:33]} 68. e6 {[%emt 0:00:50]} fxe6 {[%emt 0:01:42]} 69. dxe6 {[%emt 0:00:01]} Kc7 {[%emt 0:01:45]} 70. Kf2 {[%emt 0:02:17]} h2 {[%emt 0:01:07]} 71. Bd5 {[%emt 0:00:06]} Nxe6 {[%emt 0:00:36]} 72. Rc4+ {[%emt 0:00:48]} Kb8 {[%emt 0:00:12]} 73. Rc6 {[%emt 0:00:56]} Rd8 {[%emt 0:00:48]} 74. Rb6+ {[%emt 0:00:25]} Ka7 {[%emt 0:00:07]} 75. Rb7+ {[%emt 0:01:07]} Ka6 {[%emt 0:00:08]} 76. Re7 {[%emt 0:00:03]} Rxd5 {[%emt 0:00:35]} 0-1